[Event "Titled Tuesday Blitz May 03 Early 2022"]
[White "Jain, Naveen"]
[Black "Iljin, Timofey"]
[WhiteFideId "5003970"]
[BlackFideId "14110180"]
[WhiteElo "2036"]
[BlackElo "2396"]
[Result "0-1"]
[Round "02"]
[TimeControl "180+1"]
[Date "2022.05.03"]
[WhiteClock "0:00:01"]
[BlackClock "0:00:43"]

1. c4 {[%clk 0:03:00]}  e6 {[%clk 0:02:43]} 2. g3 {[%clk 0:03:00]}  d5 {[%clk 0:02:44]} 3. Bg2 {[%clk 0:03:00]}  d4 {[%clk 0:02:45]} 4. d3 {[%clk 0:02:50]}  Nc6 {[%clk 0:02:46]} 5. Nf3 {[%clk 0:02:51]}  Nf6 {[%clk 0:02:46]} 6. O-O {[%clk 0:02:51]}  e5 {[%clk 0:02:43]} 7. a3 {[%clk 0:02:50]}  a5 {[%clk 0:02:43]} 8. Bg5 {[%clk 0:02:48]}  Be7 {[%clk 0:02:43]} 9. Nbd2 {[%clk 0:02:46]}  O-O {[%clk 0:02:42]} 10. Rb1 {[%clk 0:02:45]}  a4 {[%clk 0:02:41]} 11. Qc2 {[%clk 0:02:28]}  Bf5 {[%clk 0:02:39]} 12. Nh4 {[%clk 0:02:24]}  Bg4 {[%clk 0:02:36]} 13. Rfe1 {[%clk 0:02:17]}  h6 {[%clk 0:02:35]} 14. Bxf6 {[%clk 0:02:16]}  Bxf6 {[%clk 0:02:36]} 15. h3 {[%clk 0:02:13]}  Be6 {[%clk 0:02:33]} 16. Nhf3 {[%clk 0:02:09]}  Re8 {[%clk 0:02:33]} 17. Ne4 {[%clk 0:02:08]}  Be7 {[%clk 0:02:33]} 18. b4 {[%clk 0:01:56]}  axb3 {[%clk 0:02:34]} 19. Rxb3 {[%clk 0:01:56]}  f5 {[%clk 0:02:35]} 20. Ned2 {[%clk 0:01:53]}  b6 {[%clk 0:02:03]} 21. e3 {[%clk 0:01:53]}  dxe3 {[%clk 0:02:01]} 22. fxe3 {[%clk 0:01:39]}  Rxa3 {[%clk 0:02:00]} 23. Rxa3 {[%clk 0:01:34]}  Bxa3 {[%clk 0:02:01]} 24. Qa4 {[%clk 0:01:33]}  Qd6 {[%clk 0:01:58]} 25. Nh4 {[%clk 0:01:02]}  Bd7 {[%clk 0:01:46]} 26. Nxf5 {[%clk 0:00:51]}  Qc5 {[%clk 0:01:29]} 27. Nb3 {[%clk 0:00:36]}  Qb4 {[%clk 0:01:29]} 28. Qxb4 {[%clk 0:00:31]}  Nxb4 {[%clk 0:01:30]} 29. Be4 {[%clk 0:00:25]}  Ba4 {[%clk 0:01:21]} 30. Nd2 {[%clk 0:00:20]}  Bc2 {[%clk 0:01:18]} 31. Ra1 {[%clk 0:00:19]}  Bb2 {[%clk 0:01:16]} 32. Ra7 {[%clk 0:00:18]}  Bc1 {[%clk 0:01:00]} 33. Rxc7 {[%clk 0:00:17]}  Bxd2 {[%clk 0:00:57]} 34. Rxg7+ {[%clk 0:00:17]}  Kf8 {[%clk 0:00:56]} 35. Rh7 {[%clk 0:00:15]}  Re6 {[%clk 0:00:49]} 36. Rh8+ {[%clk 0:00:11]}  Kf7 {[%clk 0:00:49]} 37. Nxh6+ {[%clk 0:00:11]}  Kg7 {[%clk 0:00:46]} 38. Rh7+ {[%clk 0:00:11]}  Kf8 {[%clk 0:00:45]} 39. Rf7+ {[%clk 0:00:09]}  Ke8 {[%clk 0:00:45]} 40. Kf2 {[%clk 0:00:01]}  Bxe3+ {[%clk 0:00:46]} 41. Kxe3 {[%clk 0:00:01]}  Rxh6 {[%clk 0:00:45]} 42. Rb7 {[%clk 0:00:01]}  Rd6 {[%clk 0:00:43]} 0-1


[Site "https://www.chess.com"]

[Event "Titled Tuesday Blitz May 03 Early 2022"]
[White "Jakubiec, Artur"]
[Black "Todorovic, Bojan"]
[WhiteFideId "1103261"]
[BlackFideId "917087"]
[WhiteElo "2473"]
[BlackElo "2266"]
[Result "1-0"]
[Round "02"]
[TimeControl "180+1"]
[Date "2022.05.03"]
[WhiteClock "0:00:16"]
[BlackClock "0:00:01"]

1. f4 {[%clk 0:03:00]}  d5 {[%clk 0:02:53]} 2. Nf3 {[%clk 0:03:00]}  Nc6 {[%clk 0:02:44]} 3. d4 {[%clk 0:02:58]}  Bg4 {[%clk 0:02:43]} 4. e3 {[%clk 0:02:58]}  e6 {[%clk 0:02:41]} 5. Be2 {[%clk 0:02:55]}  Nh6 {[%clk 0:02:38]} 6. O-O {[%clk 0:02:47]}  Nf5 {[%clk 0:02:35]} 7. h3 {[%clk 0:02:34]}  Bxf3 {[%clk 0:02:32]} 8. Bxf3 {[%clk 0:02:34]}  Ng3 {[%clk 0:02:26]} 9. Re1 {[%clk 0:02:33]}  f5 {[%clk 0:02:13]} 10. c4 {[%clk 0:02:29]}  Bb4 {[%clk 0:02:01]} 11. Nc3 {[%clk 0:02:27]}  Bxc3 {[%clk 0:01:55]} 12. bxc3 {[%clk 0:02:19]}  Ne4 {[%clk 0:01:39]} 13. cxd5 {[%clk 0:02:05]}  exd5 {[%clk 0:01:38]} 14. c4 {[%clk 0:02:03]}  O-O {[%clk 0:01:20]} 15. Ba3 {[%clk 0:01:49]}  Rf6 {[%clk 0:01:17]} 16. Qc2 {[%clk 0:01:40]}  h6 {[%clk 0:00:48]} 17. Rab1 {[%clk 0:01:32]}  Rb8 {[%clk 0:00:47]} 18. Rb5 {[%clk 0:01:30]}  dxc4 {[%clk 0:00:35]} 19. Bxe4 {[%clk 0:01:29]}  fxe4 {[%clk 0:00:32]} 20. Qxc4+ {[%clk 0:01:29]}  Kh8 {[%clk 0:00:29]} 21. Rc1 {[%clk 0:01:25]}  a6 {[%clk 0:00:25]} 22. Rbb1 {[%clk 0:01:23]}  Qd7 {[%clk 0:00:17]} 23. d5 {[%clk 0:01:10]}  Ne7 {[%clk 0:00:14]} 24. Rd1 {[%clk 0:01:10]}  Nf5 {[%clk 0:00:13]} 25. Qc3 {[%clk 0:01:04]}  Rg6 {[%clk 0:00:07]} 26. Kh2 {[%clk 0:00:53]}  Nh4 {[%clk 0:00:06]} 27. Rd2 {[%clk 0:00:51]}  Re8 {[%clk 0:00:05]} 28. Rc1 {[%clk 0:00:50]}  Qf5 {[%clk 0:00:03]} 29. Bb2 {[%clk 0:00:39]}  Qh5 {[%clk 0:00:03]} 30. Re2 {[%clk 0:00:23]}  Nf3+ {[%clk 0:00:02]} 31. gxf3 {[%clk 0:00:22]}  exf3 {[%clk 0:00:03]} 32. Rf2 {[%clk 0:00:17]}  Qh4 {[%clk 0:00:03]} 33. Qe1 {[%clk 0:00:17]}  Qg3+ {[%clk 0:00:03]} 34. Kh1 {[%clk 0:00:17]}  Qxh3+ {[%clk 0:00:03]} 35. Rh2 {[%clk 0:00:18]}  Qg4 {[%clk 0:00:03]} 36. Qf2 {[%clk 0:00:18]}  Re4 {[%clk 0:00:02]} 37. Rg1 {[%clk 0:00:18]}  Qf5 {[%clk 0:00:01]} 38. Rxg6 {[%clk 0:00:17]}  Qxg6 {[%clk 0:00:01]} 39. Rh3 {[%clk 0:00:18]}  Rb4 {[%clk 0:00:01]} 40. Rg3 {[%clk 0:00:17]}  Qh5+ {[%clk 0:00:01]} 41. Kg1 {[%clk 0:00:16]} 1-0


[Site "https://www.chess.com"]

[Event "Titled Tuesday Blitz May 03 Early 2022"]
[White "Jaskolka, Tomasz"]
[Black "Aung Thant Zin"]
[WhiteFideId "1170791"]
[BlackFideId "13000063"]
[WhiteElo "2073"]
[BlackElo "2278"]
[Result "1-0"]
[Round "02"]
[TimeControl "180+1"]
[Date "2022.05.03"]
[WhiteClock "0:00:20"]
[BlackClock "0:00:24"]

1. d4 {[%clk 0:03:00]}  Nf6 {[%clk 0:02:58]} 2. Bf4 {[%clk 0:02:59]}  d5 {[%clk 0:02:58]} 3. e3 {[%clk 0:03:00]}  e6 {[%clk 0:02:58]} 4. c3 {[%clk 0:03:00]}  Bd6 {[%clk 0:02:58]} 5. Bg3 {[%clk 0:03:00]}  Nbd7 {[%clk 0:02:55]} 6. Nf3 {[%clk 0:02:59]}  Qe7 {[%clk 0:02:55]} 7. Ne5 {[%clk 0:02:59]}  Ne4 {[%clk 0:02:51]} 8. f4 {[%clk 0:02:51]}  Nxg3 {[%clk 0:02:40]} 9. hxg3 {[%clk 0:02:52]}  g6 {[%clk 0:02:39]} 10. Bd3 {[%clk 0:02:50]}  Nf8 {[%clk 0:02:34]} 11. Nd2 {[%clk 0:02:49]}  Bd7 {[%clk 0:02:18]} 12. c4 {[%clk 0:02:30]}  c6 {[%clk 0:02:14]} 13. c5 {[%clk 0:02:27]}  Bc7 {[%clk 0:02:13]} 14. Ndf3 {[%clk 0:02:21]}  O-O-O {[%clk 0:02:08]} 15. Qa4 {[%clk 0:02:04]}  f6 {[%clk 0:02:04]} 16. Nxd7 {[%clk 0:01:50]}  Rxd7 {[%clk 0:01:57]} 17. Qxa7 {[%clk 0:01:49]}  Bb8 {[%clk 0:01:30]} 18. Qa8 {[%clk 0:01:46]}  Rd8 {[%clk 0:01:30]} 19. O-O-O {[%clk 0:01:42]}  Nd7 {[%clk 0:01:27]} 20. Ba6 {[%clk 0:01:15]}  Nxc5 {[%clk 0:01:15]} 21. dxc5 {[%clk 0:01:14]}  Qxc5+ {[%clk 0:01:14]} 22. Kb1 {[%clk 0:01:14]}  Qb6 {[%clk 0:00:53]} 23. Bd3 {[%clk 0:01:02]}  Qxe3 {[%clk 0:00:51]} 24. Rhe1 {[%clk 0:00:49]}  Qb6 {[%clk 0:00:42]} 25. Rxe6 {[%clk 0:00:45]}  Rhe8 {[%clk 0:00:41]} 26. Rde1 {[%clk 0:00:42]}  Rxe6 {[%clk 0:00:39]} 27. Rxe6 {[%clk 0:00:42]}  f5 {[%clk 0:00:33]} 28. Re7 {[%clk 0:00:30]}  Qb4 {[%clk 0:00:24]} 29. Rxb7 {[%clk 0:00:20]} 1-0


[Site "https://www.chess.com"]

[Event "Titled Tuesday Blitz May 03 Early 2022"]
[White "Jian, Alex"]
[Black "Shyaamnikhil P"]
[WhiteFideId "30901022"]
[BlackFideId "5024218"]
[WhiteElo "2111"]
[BlackElo "2329"]
[Result "0-1"]
[Round "02"]
[TimeControl "180+1"]
[Date "2022.05.03"]
[WhiteClock "0:00:56"]
[BlackClock "0:01:52"]

1. Nf3 {[%clk 0:03:00]}  Nf6 {[%clk 0:02:59]} 2. b3 {[%clk 0:03:00]}  d6 {[%clk 0:02:58]} 3. d4 {[%clk 0:02:59]}  g6 {[%clk 0:02:58]} 4. Bb2 {[%clk 0:02:59]}  Bg7 {[%clk 0:02:59]} 5. e3 {[%clk 0:02:59]}  O-O {[%clk 0:02:59]} 6. Nbd2 {[%clk 0:02:58]}  Nbd7 {[%clk 0:02:56]} 7. Be2 {[%clk 0:02:58]}  e5 {[%clk 0:02:54]} 8. dxe5 {[%clk 0:02:58]}  Ng4 {[%clk 0:02:54]} 9. Nc4 {[%clk 0:02:52]}  Ngxe5 {[%clk 0:02:50]} 10. Nfxe5 {[%clk 0:02:50]}  Nxe5 {[%clk 0:02:47]} 11. Nxe5 {[%clk 0:02:50]}  dxe5 {[%clk 0:02:47]} 12. O-O {[%clk 0:02:37]}  Qg5 {[%clk 0:02:43]} 13. Kh1 {[%clk 0:02:27]}  Rd8 {[%clk 0:02:41]} 14. Qe1 {[%clk 0:02:23]}  Bd7 {[%clk 0:02:31]} 15. Bf3 {[%clk 0:02:18]}  e4 {[%clk 0:02:29]} 16. Bxg7 {[%clk 0:01:44]}  exf3 {[%clk 0:02:26]} 17. gxf3 {[%clk 0:01:26]}  Bc6 {[%clk 0:02:24]} 18. e4 {[%clk 0:01:17]}  Kxg7 {[%clk 0:02:23]} 19. Qc3+ {[%clk 0:01:11]}  Qf6 {[%clk 0:02:23]} 20. Qe3 {[%clk 0:01:08]}  Qd4 {[%clk 0:02:20]} 21. Qf4 {[%clk 0:01:04]}  Rd6 {[%clk 0:01:57]} 22. Kg2 {[%clk 0:01:00]}  Rf6 {[%clk 0:01:55]} 23. Qg3 {[%clk 0:00:56]}  Rxf3 {[%clk 0:01:52]} 0-1


[Site "https://www.chess.com"]

[Event "Titled Tuesday Blitz May 03 Early 2022"]
[White "Jumabayev, Rinat"]
[Black "Jakubowski, Krzysztof"]
[WhiteFideId "13702661"]
[BlackFideId "1112848"]
[WhiteElo "2561"]
[BlackElo "2365"]
[Result "1-0"]
[Round "02"]
[TimeControl "180+1"]
[Date "2022.05.03"]
[WhiteClock "0:00:47"]
[BlackClock "0:00:31"]

1. d4 {[%clk 0:03:00]}  d5 {[%clk 0:02:58]} 2. c4 {[%clk 0:03:00]}  e6 {[%clk 0:02:57]} 3. Nf3 {[%clk 0:03:01]}  Nf6 {[%clk 0:02:56]} 4. Nc3 {[%clk 0:03:01]}  Nbd7 {[%clk 0:02:55]} 5. Bf4 {[%clk 0:03:00]}  dxc4 {[%clk 0:02:55]} 6. e3 {[%clk 0:03:00]}  Nd5 {[%clk 0:02:55]} 7. Bxc4 {[%clk 0:03:00]}  Nxf4 {[%clk 0:02:55]} 8. exf4 {[%clk 0:03:01]}  Nb6 {[%clk 0:02:55]} 9. Bb3 {[%clk 0:03:01]}  g6 {[%clk 0:02:55]} 10. h4 {[%clk 0:03:01]}  Bg7 {[%clk 0:02:54]} 11. h5 {[%clk 0:02:59]}  Bd7 {[%clk 0:02:53]} 12. h6 {[%clk 0:02:46]}  Bf6 {[%clk 0:02:52]} 13. Qd3 {[%clk 0:02:35]}  Qe7 {[%clk 0:02:37]} 14. g4 {[%clk 0:02:26]}  Rf8 {[%clk 0:02:30]} 15. O-O-O {[%clk 0:02:11]}  O-O-O {[%clk 0:02:30]} 16. Ne4 {[%clk 0:02:04]}  Bc6 {[%clk 0:02:27]} 17. Rhe1 {[%clk 0:02:01]}  Nd5 {[%clk 0:02:21]} 18. Qd2 {[%clk 0:02:01]}  Kb8 {[%clk 0:02:12]} 19. Kb1 {[%clk 0:01:59]}  a6 {[%clk 0:02:07]} 20. a3 {[%clk 0:01:59]}  b6 {[%clk 0:01:59]} 21. Neg5 {[%clk 0:01:19]}  Bxg5 {[%clk 0:01:39]} 22. Nxg5 {[%clk 0:01:18]}  Bb7 {[%clk 0:01:34]} 23. f5 {[%clk 0:01:16]}  gxf5 {[%clk 0:01:32]} 24. gxf5 {[%clk 0:01:16]}  Qf6 {[%clk 0:01:14]} 25. Nxh7 {[%clk 0:01:14]}  Qxf5+ {[%clk 0:01:11]} 26. Bc2 {[%clk 0:01:15]}  Qf3 {[%clk 0:01:00]} 27. Nxf8 {[%clk 0:01:12]}  Rxf8 {[%clk 0:01:01]} 28. h7 {[%clk 0:01:07]}  Ka7 {[%clk 0:00:55]} 29. Rg1 {[%clk 0:00:56]}  Ne7 {[%clk 0:00:40]} 30. Qh6 {[%clk 0:00:50]}  Rh8 {[%clk 0:00:34]} 31. Qg7 {[%clk 0:00:51]}  Be4 {[%clk 0:00:31]} 32. Qxh8 {[%clk 0:00:48]}  Bxc2+ {[%clk 0:00:31]} 33. Kxc2 {[%clk 0:00:49]}  Qf5+ {[%clk 0:00:31]} 34. Kc1 {[%clk 0:00:47]} 1-0


[Site "https://www.chess.com"]

[Event "Titled Tuesday Blitz May 03 Early 2022"]
[White "Kaminski, Victor"]
[Black "Aldokhin, Ivan"]
[WhiteFideId "1131630"]
[BlackFideId "24115720"]
[WhiteElo "2181"]
[BlackElo "2231"]
[Result "0-1"]
[Round "02"]
[TimeControl "180+1"]
[Date "2022.05.03"]
[WhiteClock "0:01:48"]
[BlackClock "0:01:33"]

1. e4 {[%clk 0:03:00]}  c5 {[%clk 0:03:00]} 2. Nf3 {[%clk 0:03:01]}  e6 {[%clk 0:03:01]} 3. d4 {[%clk 0:02:56]}  cxd4 {[%clk 0:03:01]} 4. Nxd4 {[%clk 0:02:57]}  a6 {[%clk 0:03:02]} 5. c3 {[%clk 0:02:57]}  Qc7 {[%clk 0:03:02]} 6. Bd3 {[%clk 0:02:57]}  Nf6 {[%clk 0:03:03]} 7. O-O {[%clk 0:02:56]}  Nc6 {[%clk 0:03:03]} 8. h3 {[%clk 0:02:50]}  Bc5 {[%clk 0:03:02]} 9. Nb3 {[%clk 0:02:49]}  Ba7 {[%clk 0:03:02]} 10. Qe2 {[%clk 0:02:48]}  O-O {[%clk 0:03:01]} 11. Bg5 {[%clk 0:02:48]}  Ne5 {[%clk 0:02:57]} 12. Bc2 {[%clk 0:02:47]}  d6 {[%clk 0:02:52]} 13. N1d2 {[%clk 0:02:47]}  Bd7 {[%clk 0:02:51]} 14. Kh1 {[%clk 0:02:45]}  Bb5 {[%clk 0:02:49]} 15. c4 {[%clk 0:02:40]}  Nxc4 {[%clk 0:02:49]} 16. Bxf6 {[%clk 0:02:36]}  gxf6 {[%clk 0:02:44]} 17. Qg4+ {[%clk 0:02:31]}  Kh8 {[%clk 0:02:42]} 18. Rfc1 {[%clk 0:02:32]}  Ne5 {[%clk 0:02:34]} 19. Qh4 {[%clk 0:02:30]}  Qe7 {[%clk 0:02:34]} 20. f4 {[%clk 0:02:25]}  Ng6 {[%clk 0:02:33]} 21. Qh6 {[%clk 0:02:22]}  Be3 {[%clk 0:02:30]} 22. g3 {[%clk 0:02:16]}  Rac8 {[%clk 0:02:24]} 23. a4 {[%clk 0:02:07]}  Bc4 {[%clk 0:01:50]} 24. Re1 {[%clk 0:01:59]}  Bxb3 {[%clk 0:01:43]} 25. Nxb3 {[%clk 0:01:52]}  Rxc2 {[%clk 0:01:35]} 26. Rxe3 {[%clk 0:01:51]}  Qc7 {[%clk 0:01:34]} 27. f5 {[%clk 0:01:48]}  exf5 {[%clk 0:01:33]} 28. exf5 {[%clk 0:01:48]}  Qc6+ {[%clk 0:01:33]} 0-1


[Site "https://www.chess.com"]

[Event "Titled Tuesday Blitz May 03 Early 2022"]
[White "Kotepalli, Sai Nirupama"]
[Black "Rosen, Eric"]
[WhiteFideId "5039444"]
[BlackFideId "2032562"]
[WhiteElo "2384"]
[BlackElo "2362"]
[Result "1-0"]
[Round "02"]
[TimeControl "180+1"]
[Date "2022.05.03"]
[WhiteClock "0:00:32"]
[BlackClock "0:00:01"]

1. e4 {[%clk 0:02:51]}  e5 {[%clk 0:02:21]} 2. d3 {[%clk 0:02:51]}  Nf6 {[%clk 0:02:17]} 3. Nf3 {[%clk 0:02:50]}  Bc5 {[%clk 0:02:16]} 4. Nxe5 {[%clk 0:02:40]}  Nc6 {[%clk 0:02:16]} 5. Nxc6 {[%clk 0:02:40]}  dxc6 {[%clk 0:02:17]} 6. Be2 {[%clk 0:02:39]}  h5 {[%clk 0:02:17]} 7. c3 {[%clk 0:02:38]}  Ng4 {[%clk 0:02:17]} 8. d4 {[%clk 0:02:35]}  Qh4 {[%clk 0:02:18]} 9. g3 {[%clk 0:02:34]}  Qf6 {[%clk 0:02:18]} 10. f3 {[%clk 0:02:27]}  h4 {[%clk 0:02:16]} 11. Bf4 {[%clk 0:01:59]}  hxg3 {[%clk 0:02:13]} 12. Bxg3 {[%clk 0:01:59]}  Ne3 {[%clk 0:01:14]} 13. Qd2 {[%clk 0:01:50]}  Bxd4 {[%clk 0:01:14]} 14. cxd4 {[%clk 0:01:44]}  Qxd4 {[%clk 0:01:14]} 15. Qxd4 {[%clk 0:01:41]}  Nc2+ {[%clk 0:01:14]} 16. Kd2 {[%clk 0:01:38]}  Nxd4 {[%clk 0:01:15]} 17. Bxc7 {[%clk 0:01:37]}  Bh3 {[%clk 0:01:11]} 18. Nc3 {[%clk 0:01:24]}  Rc8 {[%clk 0:01:06]} 19. Be5 {[%clk 0:01:23]}  Ne6 {[%clk 0:01:04]} 20. Ke3 {[%clk 0:01:18]}  f6 {[%clk 0:01:05]} 21. Bg3 {[%clk 0:01:18]}  b5 {[%clk 0:00:50]} 22. Rac1 {[%clk 0:01:09]}  a6 {[%clk 0:00:48]} 23. a4 {[%clk 0:01:08]}  O-O {[%clk 0:00:44]} 24. Na2 {[%clk 0:01:03]}  f5 {[%clk 0:00:42]} 25. Bd6 {[%clk 0:01:01]}  Rfe8 {[%clk 0:00:35]} 26. e5 {[%clk 0:01:00]}  f4+ {[%clk 0:00:32]} 27. Kf2 {[%clk 0:00:59]}  Bf5 {[%clk 0:00:32]} 28. Nb4 {[%clk 0:00:56]}  bxa4 {[%clk 0:00:10]} 29. Bxa6 {[%clk 0:00:52]}  Ra8 {[%clk 0:00:10]} 30. Bb7 {[%clk 0:00:47]}  Rab8 {[%clk 0:00:05]} 31. Bxc6 {[%clk 0:00:42]}  Rec8 {[%clk 0:00:02]} 32. Bxb8 {[%clk 0:00:41]}  Rxb8 {[%clk 0:00:03]} 33. Rc4 {[%clk 0:00:39]}  Kh7 {[%clk 0:00:03]} 34. Be4 {[%clk 0:00:38]}  Kg6 {[%clk 0:00:03]} 35. Rg1+ {[%clk 0:00:37]}  Ng5 {[%clk 0:00:03]} 36. h4 {[%clk 0:00:37]}  Kf7 {[%clk 0:00:01]} 37. Bxf5 {[%clk 0:00:32]} 1-0


[Site "https://www.chess.com"]

[Event "Titled Tuesday Blitz May 03 Early 2022"]
[White "Kouskoutis, Georgios-Alexandros"]
[Black "Matinian, Nikita"]
[WhiteFideId "4234049"]
[BlackFideId "24129100"]
[WhiteElo "2130"]
[BlackElo "2422"]
[Result "1/2-1/2"]
[Round "02"]
[TimeControl "180+1"]
[Date "2022.05.03"]
[WhiteClock "0:00:03"]
[BlackClock "0:00:06"]

1. c4 {[%clk 0:03:00]}  e5 {[%clk 0:02:59]} 2. g3 {[%clk 0:03:01]}  Nc6 {[%clk 0:03:00]} 3. Bg2 {[%clk 0:03:01]}  h5 {[%clk 0:03:00]} 4. h3 {[%clk 0:03:00]}  d6 {[%clk 0:02:57]} 5. Nc3 {[%clk 0:02:59]}  h4 {[%clk 0:02:57]} 6. g4 {[%clk 0:02:59]}  f5 {[%clk 0:02:57]} 7. gxf5 {[%clk 0:03:00]}  Bxf5 {[%clk 0:02:58]} 8. d3 {[%clk 0:02:56]}  Nf6 {[%clk 0:02:55]} 9. Bg5 {[%clk 0:02:47]}  Be7 {[%clk 0:02:53]} 10. Nf3 {[%clk 0:02:47]}  Nh5 {[%clk 0:02:52]} 11. Bxe7 {[%clk 0:02:42]}  Nxe7 {[%clk 0:02:43]} 12. e3 {[%clk 0:02:39]}  Ng6 {[%clk 0:02:26]} 13. d4 {[%clk 0:02:11]}  c6 {[%clk 0:01:13]} 14. dxe5 {[%clk 0:01:27]}  dxe5 {[%clk 0:01:14]} 15. Qxd8+ {[%clk 0:01:18]}  Rxd8 {[%clk 0:01:15]} 16. Ng5 {[%clk 0:01:18]}  Nf6 {[%clk 0:01:11]} 17. Nge4 {[%clk 0:01:04]}  Ke7 {[%clk 0:01:07]} 18. Ke2 {[%clk 0:00:59]}  b6 {[%clk 0:01:07]} 19. Rad1 {[%clk 0:00:54]}  Nxe4 {[%clk 0:00:59]} 20. Nxe4 {[%clk 0:00:44]}  Rhf8 {[%clk 0:00:48]} 21. Nc3 {[%clk 0:00:37]}  Rxd1 {[%clk 0:00:37]} 22. Rxd1 {[%clk 0:00:35]}  Rc8 {[%clk 0:00:38]} 23. b4 {[%clk 0:00:20]}  Nf8 {[%clk 0:00:38]} 24. c5 {[%clk 0:00:21]}  Ne6 {[%clk 0:00:35]} 25. cxb6 {[%clk 0:00:16]}  axb6 {[%clk 0:00:35]} 26. a4 {[%clk 0:00:16]}  Ng5 {[%clk 0:00:32]} 27. a5 {[%clk 0:00:12]}  bxa5 {[%clk 0:00:31]} 28. bxa5 {[%clk 0:00:13]}  Bxh3 {[%clk 0:00:30]} 29. Bxh3 {[%clk 0:00:11]}  Nxh3 {[%clk 0:00:31]} 30. Rh1 {[%clk 0:00:11]}  Ng5 {[%clk 0:00:30]} 31. Rxh4 {[%clk 0:00:11]}  Ra8 {[%clk 0:00:30]} 32. Ra4 {[%clk 0:00:12]}  Ne6 {[%clk 0:00:30]} 33. Ne4 {[%clk 0:00:11]}  Nc7 {[%clk 0:00:29]} 34. Nc5 {[%clk 0:00:09]}  Kd6 {[%clk 0:00:28]} 35. Nb7+ {[%clk 0:00:08]}  Kd5 {[%clk 0:00:26]} 36. Rg4 {[%clk 0:00:08]}  Ra7 {[%clk 0:00:24]} 37. Nd8 {[%clk 0:00:04]}  Nb5 {[%clk 0:00:21]} 38. a6 {[%clk 0:00:03]}  Rxa6 {[%clk 0:00:20]} 39. Rxg7 {[%clk 0:00:03]}  Ra2+ {[%clk 0:00:20]} 40. Kf3 {[%clk 0:00:03]}  Nd6 {[%clk 0:00:19]} 41. Rd7 {[%clk 0:00:03]}  e4+ {[%clk 0:00:13]} 42. Kg3 {[%clk 0:00:02]}  Ke5 {[%clk 0:00:14]} 43. Nf7+ {[%clk 0:00:02]}  Nxf7 {[%clk 0:00:12]} 44. Rxf7 {[%clk 0:00:03]}  c5 {[%clk 0:00:13]} 45. Rc7 {[%clk 0:00:03]}  Rc2 {[%clk 0:00:12]} 46. f3 {[%clk 0:00:02]}  exf3 {[%clk 0:00:10]} 47. Kxf3 {[%clk 0:00:03]}  c4 {[%clk 0:00:11]} 48. e4 {[%clk 0:00:03]}  Rc3+ {[%clk 0:00:05]} 49. Ke2 {[%clk 0:00:02]}  Kxe4 {[%clk 0:00:05]} 50. Kd2 {[%clk 0:00:03]}  Rd3+ {[%clk 0:00:05]} 51. Kc2 {[%clk 0:00:03]}  Kd4 {[%clk 0:00:05]} 52. Rd7+ {[%clk 0:00:03]}  Ke3 {[%clk 0:00:05]} 53. Re7+ {[%clk 0:00:04]}  Kd4 {[%clk 0:00:05]} 54. Rd7+ {[%clk 0:00:04]}  Ke4 {[%clk 0:00:05]} 55. Re7+ {[%clk 0:00:03]}  Kf5 {[%clk 0:00:04]} 56. Rc7 {[%clk 0:00:03]}  Rd4 {[%clk 0:00:04]} 57. Kc3 {[%clk 0:00:03]}  Rh4 {[%clk 0:00:05]} 58. Rxc4 {[%clk 0:00:03]}  Rxc4+ {[%clk 0:00:06]} 59. Kxc4 {[%clk 0:00:03]} 1/2-1/2


[Site "https://www.chess.com"]